fUST/lending_fUST_20250329
["ID","MTS","AMOUNT","RATE_DAILY","PERIOD"]
[356790557,1743192638116,-295.334768,0.00028835,15]
[356790558,1743192638125,-1272.7236,0.0002888,2]
[356790559,1743192638135,-1272.7236,0.00028894,2]
[356790560,1743192638146,-194.72938397,0.00028898,2]
[356790561,1743192638155,-194.72938393,0.00028899,2]
[356790562,1743192638167,-194.72938393,0.00028899,2]
[356790563,1743192638181,-194.72938393,0.000289,2]
[356790564,1743192638190,-194.72938393,0.000289,2]
[356790565,1743192638200,-1245.26592181,0.00028902,2]
[356790566,1743192638209,-1272.7236,0.00028908,2]
[356790567,1743192638219,-1272.7236,0.00028922,2]
[356790568,1743192638228,-1272.7236,0.00028935,2]
[356790569,1743192638238,-268.0302113,0.00028944,2]
[356790570,1743192638247,-239.36892352,0.00028978,2]
[356790571,1743192638256,-1675.58246464,0.00028988,2]
[356790572,1743192638266,-225.78668786,0.00028998,3]
[356790573,1743192638275,-118552.68925117,0.00028998,2]
[356790574,1743192638354,-6696.90015969,0.00028998,2]
[356790575,1743192638368,-625.97698097,0.00028998,2]
[356790576,1743192638517,167.0,0.00025,2]
[356790593,1743192640380,-1204.22853681,0.00028998,2]
[356790594,1743192640432,-796.76260512,0.00028998,2]
[356790603,1743192643216,-400.0,0.00028902,2]
[356790604,1743192643227,-860.22751922,0.00028998,2]
[356790605,1743192643321,-527.6110426,0.00028998,2]
[356790659,1743193530129,-381.81708,0.00023289,15]
[356790660,1743193530150,-381.81708,0.00023366,2]
[356790661,1743193530172,-381.81708,0.00024387,15]
[356790662,1743193530193,-241.46475585,0.00024461,2]
[356790665,1743193628142,-140.35232415,0.00024461,2]
[356790666,1743193628164,-381.81708,0.00025485,15]
[356790667,1743193628185,-381.81708,0.00025555,2]
[356790668,1743193628207,-204.960965,0.00025645,2]
[356790669,1743193628229,-381.81708,0.00025861,3]
[356790670,1743193628252,-182.994512,0.00025939,2]
[356790671,1743193628273,-381.81708,0.00026114,3]
[356790672,1743193628294,-381.81708,0.00026366,3]
[356790673,1743193628317,-182.994512,0.00026458,2]
[356790674,1743193628338,-381.81708,0.00026583,15]
[356790675,1743193628359,-381.81708,0.00026618,3]
[356790676,1743193628380,-381.81708,0.0002665,2]
[356790677,1743193628402,-381.81708,0.0002687,3]
[356790678,1743193628427,-258.39604973,0.000269,7]
[356790679,1743193628451,-182.994512,0.00026976,2]
[356790680,1743193628473,-456.66790088,0.00027376,2]
[356790681,1743193628498,-226.20057646,0.00027475,2]
[356790682,1743193628520,-300.0,0.00027475,2]
[356790683,1743193628542,-6322.84739623,0.00027476,2]
[356790684,1743193653095,-303.94435094,0.00027476,2]
[356790687,1743193731102,-381.81708,0.000284,30]
[356790688,1743193731131,-381.81708,0.00028452,30]
[356790689,1743193731161,-381.81708,0.00028504,30]
[356790690,1743193731188,-381.81708,0.00028556,30]
[356790691,1743193731216,-381.81708,0.00028608,30]
[356790692,1743193747149,-8764.9605372,0.00027226,2]
[356790693,1743193747173,-5000.0,0.00027376,2]
[356790694,1743193747197,-15192.62589753,0.00027476,2]
[356790695,1743193764987,152.726832,0.00028608,30]
[356790696,1743193765297,152.726832,0.00027582,30]
[356790697,1743193766060,152.726832,0.0002687,3]
[356790698,1743193766845,152.726832,0.00025533,15]
[356790699,1743193774913,-1251.63704013,0.0002906,120]
[356790700,1743193774945,-1000.0,0.0003,120]
[356790735,1743193838169,-418.40181814,0.00027629,2]
[356790736,1743193838179,-152.726832,0.00027744,2]
[356790737,1743193838189,-1428.87134986,0.000286,5]
[356790738,1743193838200,-79.65565014,0.000286,5]
[356790739,1743193838210,-186.53187125,0.0002879,2]
[356790740,1743193838219,-739.46069728,0.0002879,2]
[356790741,1743193838228,-1245.26592181,0.000288,2]
[356790742,1743193838238,-500.0,0.00028873,5]
[356790743,1743193838247,-500.0,0.00028873,5]
[356790744,1743193838257,-500.0,0.00028873,5]
[356790745,1743193838267,-500.0,0.00028873,2]
[356790746,1743193838276,-500.0,0.00028873,5]
[356790747,1743193838285,-174.38426618,0.00028887,2]
[356790748,1743193838294,-19582.44904989,0.00028888,2]
[356790749,1743193838329,-2940.03693147,0.00028888,2]
[356790751,1743193840451,-2808.88207405,0.00028888,2]
[356790752,1743193840467,-1595.92437836,0.00028888,2]
[356790761,1743193843347,-12907.36412238,0.00028888,2]
[356790769,1743193850718,-151.0,0.000289,19]
[356790770,1743193850744,-151.0,0.000289,19]
[356790771,1743193884487,-151.0,0.0003,20]
[356790772,1743193884526,-3000.0,0.00030136,120]
[356790773,1743193884581,-1000.0,0.00030136,28]
[356790774,1743193884610,-1000.0,0.00030136,28]
[356790775,1743193884638,-1000.0,0.00030136,28]
[356790776,1743193884666,-1000.0,0.00030136,28]
[356790777,1743193884693,-1000.0,0.00030136,28]
[356790778,1743193884720,-1000.0,0.00030136,28]
[356790779,1743193884748,-1000.0,0.00030136,28]
[356790780,1743193884775,-1000.0,0.00030136,28]
[356790781,1743193884803,-1000.0,0.00030136,28]
[356790782,1743193884830,-1000.0,0.00030136,28]
[356790783,1743193884857,-754.978278,0.00030136,28]
[356790784,1743193884886,-1000.0,0.00030137,30]
[356790785,1743193884925,-1000.0,0.00030137,30]
[356790786,1743193884974,-3000.0,0.0003041,120]
[356790787,1743193885042,-154.097953,0.00030422,30]
[356790788,1743193885074,-154.097953,0.0003063,30]
[356790789,1743193885114,-240.43156038,0.00030684,120]
[356790791,1743193934435,-151.0,0.000289,18]
[356790792,1743193969395,-151.0,0.000289,14]
[356790793,1743193969429,-154.097953,0.00029111,15]
[356790794,1743193969463,-151.0,0.000299,17]
[356790795,1743193969494,-300.0,0.0003,14]
[356790796,1743193986203,-151.0,0.000289,13]
[356790797,1743193986234,-1595.79220091,0.00029897,13]
[356790798,1743194002024,-151.0,0.000289,12]
[356790799,1743194007233,-151.0,0.000289,11]
[356790800,1743194056064,-300.0,0.0003,14]
[356790801,1743194061589,-151.0,0.00028898,7]
[356790802,1743194061618,-151.0,0.00028898,7]
[356790803,1743194061644,-228.2,0.00028898,7]
[356790804,1743194061669,-151.0,0.00028898,7]
[356790805,1743194061695,-151.0,0.00028898,7]
[356790806,1743194061723,-151.0,0.00028898,7]
[356790807,1743194061749,-151.0,0.00028898,7]
[356790808,1743194061776,-152.642814,0.00028898,7]
[356790809,1743194061802,-151.0,0.00028898,7]
[356790810,1743194061828,-151.0,0.00028898,7]
[356790811,1743194061857,-151.0,0.00028898,7]
[356790812,1743194061883,-151.0,0.00028898,7]
[356790813,1743194061910,-151.0,0.000289,7]
[356790814,1743194061937,-151.0,0.000289,7]
[356790815,1743194061964,-151.0,0.000289,7]
[356790816,1743194061991,-151.0,0.000289,7]
[356790817,1743194062018,-151.0,0.000289,7]
[356790818,1743194062045,-151.0,0.000289,7]
[356790819,1743194062073,-151.0,0.000289,7]
[356790820,1743194062102,-151.0,0.000289,7]
[356790821,1743194062130,-151.0,0.000289,7]
[356790822,1743194062157,-151.0,0.000289,7]
[356790823,1743194062187,-151.0,0.000289,7]
[356790824,1743194062214,-151.0,0.000289,7]
[356790825,1743194062241,-151.0,0.000289,7]
[356790826,1743194062267,-151.0,0.000289,7]
[356790827,1743194062292,-151.0,0.000289,7]
[356790828,1743194062320,-151.0,0.0002923,7]
[356790829,1743194062348,-151.0,0.0002924,7]
[356790830,1743194062375,-151.0,0.0002924,7]
[356790831,1743194062403,-151.0,0.0002926,7]
[356790832,1743194062429,-151.0,0.0002927,7]
[356790833,1743194062635,-151.0,0.0002927,7]
[356790834,1743194062663,-151.0,0.0002927,7]
[356790835,1743194062690,-151.0,0.0002928,7]
[356790836,1743194062718,-151.0,0.0002928,7]
[356790837,1743194062744,-151.0,0.0002928,7]
[356790838,1743194062770,-151.0,0.000293,7]
[356790839,1743194062797,-844.0,0.000295,10]
[356790840,1743194062825,-151.0,0.000295,7]
[356790841,1743194062851,-500.0,0.00029526,7]
[356790842,1743194062877,-500.0,0.000298,7]
[356790843,1743194062904,-9175.66128771,0.0003,7]
[356790888,1743194739125,-151.18618189,0.00024953,2]
[356790889,1743194739148,-257.3998338,0.00026117,2]
[356790895,1743194827136,-9532.6041453,0.00026117,2]
[356790896,1743194827159,-158.181361,0.00027847,15]
[356790897,1743194827181,-158.181361,0.00028479,15]
[356790898,1743194827203,-647.02811012,0.0002869,2]
[356790899,1743194827225,-151.0,0.000287,17]
[356790900,1743194827247,-151.0,0.000287,17]
[356790901,1743194827270,-1245.26592181,0.000287,2]
[356790902,1743194827291,-382.49832892,0.0002878,2]
[356790903,1743194838091,-1593.65834624,0.0002878,2]
[356790909,1743194956435,154.097953,0.00026797,6]
[356790910,1743194969115,158.181362,0.00026797,6]
[356790911,1743194969418,158.181362,0.00026711,6]
[356790943,1743195038477,-566.14959632,0.00028695,2]
[356790945,1743195038486,-254.336982,0.0002879,3]
[356790947,1743195038497,-4466.77215394,0.0002879,2]
[356790962,1743195040681,-44147.53496709,0.0002879,2]
[356791011,1743195046457,-441.8099972,0.0002879,2]
[356791016,1743195820614,1125.7888813,0.00025,120]
[356791018,1743196032188,-158.181362,0.00026166,15]
[356791019,1743196032212,-154.097953,0.000262,15]
[356791020,1743196032234,-158.181362,0.000262,15]
[356791021,1743196032255,-1014.4086944,0.00027105,2]
[356791022,1743196032278,-250.0,0.00027105,2]
[356791023,1743196032299,-158.181362,0.0002719,3]
[356791024,1743196032321,-154.097953,0.00027511,3]
[356791025,1743196032343,-158.181362,0.00027511,3]
[356791026,1743196032365,-238.417635,0.00027524,2]
[356791027,1743196032387,-300.0,0.00027729,2]
[356791028,1743196032409,-3767.3316447,0.0002773,2]
[356791029,1743196032430,-158.181362,0.00027803,2]
[356791030,1743196032453,-154.097953,0.00028322,2]
[356791031,1743196032475,-158.181362,0.00028322,2]
[356791032,1743196032496,-186.53187125,0.0002859,2]
[356791033,1743196032517,-539.23497051,0.0002859,2]
[356791034,1743196032539,-225.86862837,0.00028679,2]
[356791035,1743196032563,-300.09412529,0.0002868,3]
[356791036,1743196032585,-4286.42942781,0.0002868,2]
[356791037,1743196038411,-232.2203121,0.0002868,2]
[356791038,1743196053098,-185.95122532,0.0002868,2]
[356791039,1743196148101,-1066.47317715,0.00026573,24]
[356791040,1743196163964,158.181362,0.00027511,3]
[356791041,1743196164583,158.181362,0.000262,15]
[356791071,1743196231863,-158.181362,0.00028322,2]
[356791072,1743196231875,-300.0,0.00028669,2]
[356791073,1743196231884,-20943.9232917,0.0002867,2]
[356791074,1743196231895,-6119.75670234,0.0002868,2]
[356791082,1743196237529,-16755.53347396,0.0002868,2]
[356791084,1743196237642,-946.37722602,0.0002868,2]
[356791099,1743196239984,-290.77627598,0.0002868,2]
[356791100,1743196239998,-101551.0960717,0.0002868,2]
[356791101,1743196240007,-5021.0791078,0.0002869,2]
[356791102,1743196240019,-41032.52171151,0.0002869,2]
[356791187,1743196242846,-1483.22075354,0.0002869,2]
[356791191,1743196242901,-357.26357988,0.0002869,2]
[356791395,1743196245707,-652.9500001,0.0002869,2]
[356791406,1743197137140,-178.835302,0.00026065,15]
[356791407,1743197137165,-178.835302,0.00026227,3]
[356791408,1743197137186,-178.835302,0.00026242,2]
[356791409,1743197137206,-178.835302,0.00026344,15]
[356791410,1743197137227,-178.835302,0.00026548,3]
[356791411,1743197137248,-178.835302,0.00026622,15]
[356791412,1743197137269,-178.835302,0.00026762,2]
[356791413,1743197137290,-154.101777,0.00026869,3]
[356791414,1743197137311,-178.835302,0.00026869,3]
[356791415,1743197137332,-154.101777,0.00026901,15]
[356791416,1743197137352,-178.835302,0.00026901,15]
[356791417,1743197137372,-291.86586856,0.00027146,2]
[356791418,1743197146087,-1146.61118624,0.00027146,2]
[356791419,1743197146108,-142.4718116,0.0002718,15]
[356791420,1743197253095,-11.6299654,0.0002718,15]
[356791421,1743197253122,-178.835302,0.0002718,15]
[356791422,1743197253145,-154.101777,0.0002719,3]
[356791423,1743197253168,-178.835302,0.0002719,3]
[356791424,1743197253192,-110.46632453,0.00027228,2]
[356791425,1743197253227,-103.12446747,0.00027228,2]
[356791426,1743197253251,-178.835302,0.00027282,2]
[356791427,1743197253275,-154.097956,0.00027511,3]
[356791428,1743197253299,-158.181362,0.00027511,3]
[356791429,1743197253323,-154.101777,0.00027511,3]
[356791430,1743197253349,-178.835302,0.00027511,3]
[356791431,1743197253372,-456.66790088,0.00027557,2]
[356791432,1743197253395,-178.835302,0.00027567,30]
[356791433,1743197253419,-300.0,0.00027656,2]
[356791434,1743197253441,-308.83793449,0.00027656,2]
[356791435,1743197253465,-226.20057646,0.00027656,2]
[356791436,1743197253488,-13400.85810357,0.00027657,2]
[356791439,1743197377684,204.960965,0.00027219,2]
[356791461,1743197432136,-11499.14189643,0.00027657,2]
[356791462,1743197432146,-154.101777,0.00027802,2]
[356791463,1743197432155,-178.835302,0.00027802,2]
[356791464,1743197432164,-178.835302,0.00028025,30]
[356791465,1743197432176,-154.101777,0.00028322,2]
[356791466,1743197432186,-178.835302,0.00028322,2]
[356791467,1743197432195,-178.835302,0.00028484,30]
[356791468,1743197432205,-500.0,0.00028569,2]
[356791469,1743197432215,-342.94585317,0.00028569,2]
[356791470,1743197432225,-87469.0449839,0.0002857,2]
[356791471,1743197432235,-598.02802014,0.00028579,2]
[356791472,1743197432245,-271.5438311,0.0002858,3]
[356791473,1743197432255,-22990.19555903,0.0002858,2]
[356791474,1743197432268,-380.8892364,0.0002858,2]
[356791475,1743197432281,-1720.0000008,0.0002858,2]
[356791488,1743197437836,-616.97023573,0.0002858,2]
[356791489,1743197440200,-429.99424976,0.0002858,2]
[356791490,1743197440264,-860.0,0.0002858,2]
[356791500,1743197443189,-338.18235704,0.0002858,2]
[356791501,1743197443213,-1537.55295545,0.0002858,2]
[356791510,1743198333143,-151.18618189,0.00024953,2]
[356791511,1743198333166,-182.994512,0.00026854,2]
[356791512,1743198333189,-1096.9953445,0.00027347,2]
[356791513,1743198333211,-182.994512,0.00027391,2]
[356791514,1743198333234,-300.0,0.00027546,2]
[356791515,1743198333258,-382.07666445,0.00027546,2]
[356791516,1743198333281,-664.01073339,0.00027547,2]
[356791517,1743198334376,-496.6357139,0.00027547,2]
[356791519,1743198449080,-300.0,0.00027546,2]
[356791520,1743198449104,-1367.79009783,0.00027547,2]
[356791521,1743198453139,-15642.69639026,0.00027547,2]
[356791522,1743198560108,-6728.86706462,0.00027547,2]
[356791534,1743198632459,-182.994512,0.00027929,2]
[356791535,1743198632469,-158.181364,0.00028322,2]
[356791537,1743198632480,-187.66760818,0.00028459,2]
[356791539,1743198632489,-500.0,0.00028459,2]
[356791540,1743198632499,-121972.042503,0.0002846,2]
[356791541,1743198632509,-1245.26592181,0.00028461,2]
[356791542,1743198632518,-204603.47954504,0.0002847,2]
[356791543,1743198632530,-117396.52045496,0.0002847,2]
[356791545,1743198632539,-151.0,0.00028561,7]
[356791547,1743198632548,-151.0,0.00028561,7]
[356791549,1743198632558,-151.0,0.00028561,7]
[356791551,1743198632568,-151.0,0.00028561,7]
[356791553,1743198632582,-151.0,0.00028561,7]
[356791555,1743198632592,-151.0,0.00028561,7]
[356791557,1743198632601,-151.0,0.00028561,7]
[356791559,1743198632611,-150.0,0.0002857,2]
[356791561,1743198632622,-160.0,0.00028617,2]
[356791563,1743198632632,-418.56810427,0.00028655,2]
[356791566,1743198632642,-151.0,0.00028665,7]
[356791568,1743198632653,-151.0,0.00028665,7]
[356791570,1743198632662,-151.0,0.00028665,7]
[356791572,1743198632671,-151.0,0.00028665,7]
[356791574,1743198632680,-151.0,0.00028665,7]
[356791576,1743198632690,-366.486471,0.00028665,2]
[356791577,1743198632699,-366.486471,0.00028665,2]
[356791579,1743198632709,-151.0,0.00028665,7]
[356791581,1743198632718,-151.0,0.00028665,7]
[356791583,1743198632727,-500.0,0.00028675,5]
[356791584,1743198632736,-500.0,0.00028675,5]
[356791585,1743198632746,-472.93347089,0.00028675,5]
[356791586,1743198632755,-24394.4085007,0.0002869,2]
[356791587,1743198632764,-151.0,0.000287,11]
[356791588,1743198632774,-500.0,0.000287,5]
[356791589,1743198632783,-200.43708922,0.000287,5]
[356791590,1743198632793,-500.0,0.00028729,5]
[356791591,1743198632803,-500.0,0.00028729,5]
[356791592,1743198632812,-500.0,0.00028729,5]
[356791593,1743198632821,-500.0,0.00028729,5]
[356791594,1743198632831,-210.04787036,0.0002874,5]
[356791595,1743198632841,-259.26991722,0.0002874,5]
[356791596,1743198632850,-500.42403067,0.0002874,5]
[356791597,1743198632860,-500.0,0.00028767,5]
[356791598,1743198632869,-302.0,0.00028789,2]
[356791599,1743198632879,-151.0,0.000288,13]
[356791600,1743198632889,-151.0,0.000288,20]
[356791601,1743198632898,-174.38426617,0.000288,2]
[356791602,1743198632908,-151.0,0.000288,18]
[356791603,1743198632917,-152.642814,0.00028866,7]
[356791604,1743198632927,-228.2,0.00028866,7]
[356791605,1743198632936,-151.0,0.00028866,7]
[356791606,1743198632946,-151.0,0.00028866,7]
[356791607,1743198632956,-151.0,0.00028866,7]
[356791608,1743198632966,-151.0,0.00028866,7]
[356791609,1743198632975,-500.0,0.00028873,5]
[356791610,1743198632985,-500.0,0.00028873,5]
[356791611,1743198632994,-513.81120663,0.00028873,5]
[356791612,1743198633004,-500.4865879,0.00028873,5]
[356791613,1743198633014,-500.0,0.00028873,5]
[356791614,1743198633024,-500.0,0.00028873,5]
[356791615,1743198633034,-500.0,0.00028873,5]
[356791616,1743198633044,-500.0,0.00028873,5]
[356791617,1743198633054,-368.15464723,0.00028873,5]
[356791618,1743198633064,-500.0,0.00028873,5]
[356791619,1743198633074,-500.0,0.00028873,5]
[356791620,1743198633084,-2109.60668514,0.00028876,2]
[356791621,1743198633094,-151.0,0.00028876,7]
[356791622,1743198633105,-151.0,0.0002888,7]
[356791623,1743198633115,-151.0,0.0002888,7]
[356791624,1743198633126,-151.0,0.0002888,7]
[356791625,1743198633136,-151.0,0.0002888,7]
[356791626,1743198633146,-366.486471,0.0002888,2]
[356791627,1743198633156,-366.486471,0.0002888,2]
[356791628,1743198633166,-151.0,0.0002888,7]
[356791629,1743198633177,-151.0,0.00028883,2]
[356791630,1743198633187,-600.0,0.00028883,2]
[356791631,1743198633198,-151.0,0.0002889,7]
[356791632,1743198633208,-151.0,0.0002889,7]
[356791633,1743198633218,-151.0,0.0002889,7]
[356791634,1743198633228,-151.0,0.0002889,7]
[356791635,1743198633238,-151.0,0.0002889,7]
[356791636,1743198633249,-203.69636107,0.0002889,7]
[356791637,1743198633260,-150.3,0.0002889,7]
[356791638,1743198633270,-38164.14645112,0.0002889,2]
[356791649,1743198638454,-1738.0773767,0.0002889,2]
[356791655,1743198640468,-2735.3965849,0.0002889,2]
[356791656,1743198640482,-882.70107542,0.0002889,2]
[356791657,1743198640494,-262.44210957,0.0002889,2]
[356791658,1743198640506,-53794.87040499,0.0002889,2]
[356791659,1743198640516,-173.039535,0.0002889,7]
[356791660,1743198640525,-270.86240301,0.0002889,7]
[356791661,1743198640535,-151.0,0.0002889,7]
[356791662,1743198640545,-151.0,0.0002889,7]
[356791663,1743198640555,-151.0,0.0002889,7]
[356791664,1743198640564,-363.46186547,0.000289,8]
[356791665,1743198640577,-66820.07715778,0.000289,2]
[356791669,1743198643551,-700.77293174,0.00028361,2]
[356791670,1743198643562,-147.14992994,0.000289,2]
[356791671,1743198643578,-644.95453371,0.000289,2]
[356791673,1743198643594,-1053.00160303,0.000289,2]
[356791684,1743198646285,-8327.01877402,0.000289,2]
[356791685,1743198646395,-27127.43,0.000289,2]
[356791686,1743198646427,-947.67,0.000289,2]
[356791692,1743199535107,-500.0,0.00026999,2]
[356791693,1743199535131,-161.83056981,0.00026999,2]
[356791694,1743199535153,-300.0,0.00026999,2]
[356791695,1743199535176,-2189.90251885,0.00027,2]
[356791696,1743199627086,-1066.47317715,0.00026573,24]
[356791697,1743199627108,-2098.49431423,0.00027,2]
[356791698,1743199651097,-232.2203121,0.00027,2]
[356791699,1743199749168,-216.73724405,0.00027,2]
[356791700,1743199750099,-4120.5962,0.00027,2]
[356791701,1743199757094,-634.24488236,0.00027,2]
[356791702,1743199757175,-2543.19992514,0.00027,2]
[356791703,1743199757196,-158.181362,0.00027433,3]
[356791704,1743199757218,-13824.9048623,0.00027547,2]
[356791728,1743199832463,-842.5532585,0.00027547,2]
[356791729,1743199832473,-26002.6649425,0.000283,30]
[356791730,1743199832483,-418.56810427,0.00028311,2]
[356791731,1743199832493,-576.67553202,0.0002835,2]
[356791732,1743199832503,-220.48872922,0.0002835,2]
[356791733,1743199832512,-138590.43198,0.00028351,2]
[356791734,1743199832521,-63884.4462465,0.00028361,2]
[356791735,1743199832533,-236155.33446127,0.00028361,2]
[356791736,1743199832544,-418.88,0.00028361,2]
[356791737,1743199832555,-2503.99719708,0.00028361,2]
[356791738,1743199832595,-379.87594704,0.00028361,2]
[356791739,1743199832606,-373.6340715,0.00028361,2]
[356791751,1743199838711,-1416.66574256,0.00028361,2]
[356791766,1743199840556,-258.22,0.00028361,2]
[356791768,1743199840570,-6655.97958307,0.00028361,2]
[356791769,1743199840588,-1157.34769832,0.00028361,2]
[356791787,1743199843588,-5287.3565246,0.00028361,2]
[356791788,1743199843703,-3508.26252806,0.00028361,2]
[356791789,1743199843714,-7349.39532158,0.00028363,2]
[356791821,1743200623369,-1251.6,0.00029,120]
[356791822,1743200653023,-0.03704013,0.00029,120]
[356791823,1743200653056,-0.03704013,0.0003,120]
[356791824,1743200653074,-999.92591974,0.0003,120]
[356791825,1743200679855,-0.03704013,0.0003,120]
[356791826,1743200680019,-0.03704013,0.00030136,120]
[356791827,1743200680051,-2999.92591974,0.00030136,120]
[356791828,1743200753124,-179.74832365,0.00025698,2]
[356791829,1743200753146,-1105.7743658,0.00026338,2]
[356791830,1743200839139,-40.8368204,0.00026338,2]
[356791831,1743200839163,-300.0,0.00026853,2]
[356791832,1743200839192,-218.0877913,0.00026854,2]
[356791833,1743200839218,-500.0,0.00026854,2]
[356791834,1743200839245,-416.3244242,0.00026854,2]
[356791840,1743200946243,-2910.05020898,0.00021,3]
[356791841,1743200948085,-118.89097947,0.00021,3]
[356791842,1743200948106,-900.0,0.00025469,3]
[356791843,1743200948127,-300.0,0.00025999,2]
[356791844,1743200948149,-17806.68552167,0.00026,30]
[356791845,1743200948173,-83.6755758,0.00026854,2]
[356791846,1743200948195,-343.76456568,0.00026854,2]
[356791847,1743200948216,-606.12238736,0.00026854,2]
[356791848,1743200948240,-500.0,0.00026854,2]
[356791849,1743200948263,-500.0,0.00026854,2]
[356791850,1743200948287,-500.0,0.00026854,2]
[356791851,1743200948312,-500.0,0.00026854,2]
[356791852,1743200948335,-500.0,0.00026854,2]
[356791853,1743200948359,-500.0,0.00026854,2]
[356791854,1743200948381,-500.0,0.00026854,2]
[356791855,1743200948405,-500.0,0.00026854,2]
[356791856,1743200948428,-500.0,0.00026854,2]
[356791857,1743200948451,-500.0,0.00026854,2]
[356791858,1743200948475,-500.0,0.00026854,2]
[356791859,1743200948497,-500.0,0.00026854,2]
[356791860,1743200948520,-340.99764279,0.00026854,2]
[356791861,1743200948545,-500.0,0.00026854,2]
[356791862,1743200948566,-1015.28153394,0.00026854,2]
[356791863,1743200948588,-12513.581094,0.00026855,2]
[356791864,1743200948609,-1353.7891501,0.00026871,2]
[356791865,1743200948631,-6121.20170285,0.000269,7]
[356791866,1743200948652,-835.12233967,0.00027,3]
[356791867,1743200948673,-1404.6764684,0.00027001,2]
[356791868,1743200948694,-298.381017,0.00027101,2]
[356791869,1743200955588,153.726502,0.00026797,6]
[356791870,1743200958123,-6121.20170274,0.00027141,7]
[356791871,1743200958144,-152.0,0.00027307,2]
[356791872,1743200958166,-5471.93248806,0.00027383,7]
[356791873,1743200966397,150.524367,0.00026797,6]
[356791874,1743200966677,150.524367,0.00026711,6]
[356791875,1743200969410,160.0,0.00027141,7]
[356791926,1743201032616,-198.89773476,0.00027447,2]
[356791927,1743201032631,-1404.67646838,0.00027787,2]
[356791928,1743201032645,-1000.0,0.00028,2]
[356791929,1743201032659,-688.48832026,0.00028002,2]
[356791930,1743201032672,-835.12233967,0.00028107,7]
[356791931,1743201032684,-160.0,0.00028107,7]
[356791932,1743201032698,-300.0,0.00028152,2]
[356791933,1743201032711,-1372.32401352,0.00028153,2]
[356791934,1743201032725,-160.0,0.00028163,2]
[356791935,1743201032738,-418.56810427,0.00028163,2]
[356791936,1743201032752,-1194.8542458,0.00028199,2]
[356791937,1743201032765,-240.71,0.0002823,3]
[356791938,1743201032779,-600.0,0.00028233,2]
[356791939,1743201032791,-154.34211045,0.00028239,2]
[356791940,1743201032803,-591.19479991,0.00028239,2]
[356791941,1743201032812,-238349.506886,0.0002824,2]
[356791942,1743201032822,-300.09412529,0.0002825,3]
[356791943,1743201032831,-244.35621434,0.0002825,3]
[356791944,1743201032841,-322000.0,0.0002825,2]
[356791945,1743201032851,-721.720179,0.00028253,2]
[356791946,1743201032860,-500.1702032,0.00028273,5]
[356791947,1743201032870,-500.0,0.00028273,5]
[356791948,1743201032879,-150.241841,0.00028273,5]
[356791949,1743201032888,-500.0,0.00028273,5]
[356791950,1743201032898,-619.11161008,0.00028273,5]
[356791951,1743201032907,-500.69267219,0.00028273,5]
[356791952,1743201032917,-500.0,0.00028273,5]
[356791953,1743201032926,-500.0,0.00028273,5]
[356791954,1743201032935,-500.0,0.00028273,5]
[356791955,1743201032945,-500.0,0.00028273,5]
[356791956,1743201033283,-581.72444124,0.00028273,5]
[356791957,1743201033319,-500.0,0.00028273,5]
[356791958,1743201033334,-225.73367461,0.00028273,5]
[356791959,1743201033344,-500.0,0.00028273,5]
[356791960,1743201033355,-500.0,0.00028273,5]
[356791961,1743201033370,-500.0,0.00028273,5]
[356791962,1743201033382,-500.0,0.00028273,5]
[356791963,1743201033391,-151.99377898,0.00028273,5]
[356791964,1743201033402,-500.0,0.00028273,5]
[356791965,1743201033415,-536.08265795,0.00028273,5]